bitfinex/quotes_ETHUSD_20250706
["timestamp","ask_amount","ask_price","bid_price","bid_amount"]
[1751828853950,24.95944157,2539.4,2539.3,0.0450518]
[1751828854152,32.99544157,2539.4,2539.3,0.0450518]
[1751828856081,32.99580993,2539.4,2539.3,0.0450518]
[1751828858866,22.98880993,2539.4,2539.3,0.0450518]
[1751828859664,32.99580993,2539.4,2539.3,0.0450518]
[1751828865094,32.99678186,2539.4,2539.3,0.0450518]
[1751828866886,32.99578186,2539.4,2539.3,0.0450518]
[1751828867589,22.98978186,2539.4,2539.3,0.0450518]
[1751828867995,32.99578186,2539.4,2539.3,0.0450518]
[1751828868201,32.99578946,2539.4,2539.3,0.0450518]
[1751828868592,22.98978946,2539.4,2539.3,0.0450518]
[1751828868798,32.99578946,2539.4,2539.3,0.0450518]
[1751828875576,32.99582448,2539.4,2539.3,0.0450518]
[1751828877205,32.62842195,2539.4,2539.3,0.0450518]
[1751828877409,32.99582087,2539.4,2539.3,0.0450518]
[1751828879216,10.36739892,2539.4,2539.3,0.0450518]
[1751828879515,10.37039892,2539.4,2539.3,0.0450518]
[1751828880208,10.37039892,2539.4,2539.3,3.98314497]
[1751828880209,0.36739892,2539.4,2539.3,3.98314497]
[1751828880410,8.033,2539.4,2539.3,0.0450518]
[1751828880584,8.40039892,2539.4,2539.3,0.0450518]
[1751828881482,8.033,2539.4,2539.3,0.0450518]
[1751828884613,8.033,2539.4,2539.3,3.98314497]
[1751828884909,1.97,2539.5,2539.4,4.73464927]
[1751828885102,20.002,2539.5,2539.4,4.73464927]
[1751828885780,20.002,2539.5,2539.4,0.7968]
[1751828892728,10.002,2539.5,2539.4,0.7968]
[1751828896326,20.002,2539.5,2539.4,0.7968]
[1751828897207,28.68648386,2539.5,2539.3,0.0450518]
[1751828908338,34.65700408,2539.5,2539.3,0.0450518]
[1751828908544,33.44295119,2539.5,2539.3,0.0450518]
[1751828909422,4.3055845,2539.4,2539.3,0.0450518]
[1751828909622,0.36764641,2539.4,2539.3,0.0450518]
[1751828910641,4.3055845,2539.4,2539.3,0.0450518]
[1751828911739,0.36764641,2539.4,2539.3,0.0450518]
[1751828915853,0.36764641,2539.4,2539.3,3.98314497]
[1751828915854,9.994,2539.4,2539.3,3.98314497]
[1751828920152,10.0,2539.5,2539.4,3.93793809]
[1751828920358,10.35962552,2539.5,2539.4,3.93793809]
[1751828920964,10.35962552,2539.5,2539.3,3.98302818]
[1751828921145,9.992,2539.5,2539.3,3.98302818]
[1751828921460,9.992,2539.5,2539.4,3.93793809]
[1751828921666,10.35977269,2539.5,2539.4,3.93793809]
[1751828922164,10.36007406,2539.5,2539.4,3.93793809]
[1751828923254,10.36007406,2539.5,2539.3,3.98306404]
[1751828923475,9.992,2539.5,2539.4,3.93793809]
[1751828923660,10.36064831,2539.5,2539.4,3.93793809]
[1751828925467,0.36864831,2539.5,2539.4,3.93793809]
[1751828925625,10.35964831,2539.5,2539.4,3.93793809]
[1751828926059,0.36864831,2539.5,2539.4,3.93793809]
[1751828926231,10.35964831,2539.5,2539.4,3.93793809]
[1751828926741,2.33564831,2539.5,2539.4,3.93793809]
[1751828926940,10.35964831,2539.5,2539.4,3.93793809]
[1751828932543,10.35967594,2539.5,2539.4,3.93793809]
[1751828932937,10.35967594,2539.5,2539.3,3.98306327]
[1751828933140,9.991,2539.5,2539.3,3.98306327]
[1751828933883,9.99,2539.4,2539.3,3.9830844]
[1751828936760,10.0,2539.6,2539.4,3.93780362]
[1751828937059,9.989,2539.5,2539.4,3.93780362]
[1751828937472,10.0,2539.6,2539.4,3.93780362]
[1751828937757,9.989,2539.5,2539.4,3.93780362]
[1751828938207,10.0,2539.6,2539.4,3.93780362]
[1751828938794,9.988,2539.5,2539.4,3.93780362]
[1751828940584,9.985,2539.5,2539.4,3.93780362]
[1751828941091,10.0,2539.6,2539.4,3.93780362]
[1751828941321,9.985,2539.5,2539.4,3.93780362]
[1751828948398,9.985,2539.5,2539.4,3.93780362]
[1751828953605,12.01765289,2539.5,2539.3,0.0450518]
[1751828953804,22.04686374,2539.4,2539.3,0.0450518]
[1751828954106,18.10892565,2539.4,2539.3,0.0450518]
[1751828955007,18.10876294,2539.4,2539.3,0.0450518]
[1751828956080,17.32456294,2539.4,2539.3,0.0450518]
[1751828956278,27.30656294,2539.4,2539.3,0.0450518]
[1751828956806,20.35043572,2539.4,2539.3,0.0450518]
[1751828957385,29.88253187,2539.4,2539.3,0.0450518]
[1751828961197,29.88240405,2539.4,2539.3,0.0450518]
[1751828962221,33.82034214,2539.4,2539.3,0.0450518]
[1751828962908,29.88240405,2539.4,2539.3,0.0450518]
[1751828963109,29.8823629,2539.4,2539.3,0.0450518]
[1751828963986,2.33226675,2539.4,2539.3,3.98314497]
[1751828964188,2.33226675,2539.4,2539.3,5.73875094]
[1751828964407,2.33216905,2539.4,2539.3,5.73875094]
[1751828964848,1.964,2539.4,2539.3,5.73875094]
[1751828964998,18.016,2539.7,2539.6,3.93749795]
[1751828965204,18.38419489,2539.7,2539.6,3.93749795]
[1751828965700,10.36819489,2539.7,2539.6,3.93749795]
[1751828965901,18.38419489,2539.7,2539.6,3.93749795]
[1751828966207,18.016,2539.7,2539.6,3.93749795]
[1751828966412,18.016,2539.7,2539.5,3.93768586]
[1751828966616,18.016,2539.7,2539.6,3.93762797]
[1751828968031,1.965,2539.8,2539.7,3.93747292]
[1751828968528,0.001,2539.8,2539.7,3.93747292]
[1751828968735,0.001,2539.8,2539.7,4.84608773]
[1751828968950,8.016,2539.8,2539.7,4.84608773]
[1751828969248,8.016,2539.8,2539.7,4.80671301]
[1751828970734,0.001,2539.8,2539.7,4.80671301]
[1751828970934,0.001,2539.8,2539.7,4.84608773]
[1751828971342,0.001,2539.8,2539.7,4.80671301]
[1751828971732,0.001,2539.8,2539.7,4.84608773]
[1751828971922,0.001,2539.8,2539.7,4.80671301]
[1751828984558,0.001,2539.8,2539.7,3.93747292]
[1751828987456,0.001,2539.8,2539.6,3.93955794]
[1751828988457,0.001,2539.8,2539.6,0.002]
[1751828988458,13.47066907,2539.7,2539.6,0.002]
[1751828988756,0.837,2539.7,2539.6,0.002]
[1751828989125,10.807,2539.7,2539.6,0.002]
[1751828989533,14.74447292,2539.7,2539.6,0.002]
[1751828991537,24.74447292,2539.7,2539.6,0.002]
[1751828992150,25.10668382,2539.7,2539.6,0.002]
[1751828995967,33.80287997,2539.7,2539.6,0.002]
[1751828999870,4.72403809,2539.4,2539.3,0.0450518]
[1751829000068,21.79044514,2539.4,2539.3,0.0450518]
[1751829000259,31.79044514,2539.4,2539.3,0.0450518]
[1751829000786,31.42823424,2539.4,2539.3,0.0450518]
[1751829000969,31.7958287,2539.4,2539.3,0.0450518]
[1751829001485,31.7957991,2539.4,2539.3,0.0450518]
[1751829004766,31.42823424,2539.4,2539.3,0.0450518]
[1751829004969,31.79533436,2539.4,2539.3,0.0450518]
[1751829018203,31.42823424,2539.4,2539.3,0.0450518]
[1751829018499,31.79534859,2539.4,2539.3,0.0450518]
[1751829018867,31.79533599,2539.4,2539.3,0.0450518]
[1751829019599,2.32610175,2539.4,2539.3,0.0450518]
[1751829019800,10.33310175,2539.4,2539.3,0.0450518]
[1751829020012,24.2713377,2539.4,2539.3,0.0450518]
[1751829020183,25.0487377,2539.4,2539.3,0.0450518]
[1751829020579,3.93871361,2538.9,2538.8,0.0430518]
[1751829020904,21.94471361,2538.9,2538.8,0.0430518]
[1751829021109,30.64090976,2538.9,2538.8,0.0430518]
[1751829021699,31.00831554,2538.9,2538.8,0.0430518]
[1751829023074,41.28661554,2538.9,2538.8,0.0430518]
[1751829023273,3.93933425,2538.5,2538.4,0.002]
[1751829023518,23.4138304,2538.5,2538.4,0.002]
[1751829023802,33.78108021,2538.5,2538.4,0.002]
[1751829026524,34.33108021,2538.5,2538.4,0.002]
[1751829026824,34.33108021,2538.5,2538.0,0.002]
[1751829026825,0.7731,2538.1,2538.0,0.002]
[1751829026988,31.78250104,2538.1,2538.0,0.002]
[1751829027370,32.33250104,2538.1,2538.0,0.002]
[1751829027588,3.94026557,2537.9,2537.5,0.002]
[1751829027789,14.27251538,2537.9,2537.5,0.002]
[1751829028402,22.96871153,2537.9,2537.5,0.002]
[1751829028782,9.06344596,2537.9,2537.5,0.002]
[1751829028990,28.66219615,2537.9,2537.6,0.7862]
[1751829030684,19.966,2537.9,2537.7,3.94048064]
[1751829030890,19.966,2537.9,2537.8,3.98347263]
[1751829031103,19.967,2537.9,2537.8,3.98347263]
[1751829031303,19.967,2537.9,2537.8,0.0430518]
[1751829031487,11.96,2537.9,2537.8,3.98347263]
[1751829031693,9.967,2537.9,2537.8,3.98347263]
[1751829032100,9.967,2537.9,2537.8,0.0430518]
[1751829035189,9.967,2537.9,2537.8,3.98347263]
[1751829035409,9.967,2537.9,2537.8,0.0430518]
[1751829036814,9.966,2537.9,2537.8,0.0430518]
[1751829037519,20.516,2537.9,2537.8,0.0430518]
[1751829037730,0.50215507,2538.3,2537.8,0.0430518]
[1751829037898,8.006,2538.2,2538.0,0.7638]
[1751829038217,3.93906141,2538.7,2538.0,0.7638]
[1751829038395,1.957,2539.0,2538.6,1.0202]
[1751829038721,0.001,2539.6,2539.0,0.8234]
[1751829038722,1.957,2539.5,2539.0,0.8234]
[1751829038916,8.018,2539.6,2539.5,3.93778302]
[1751829039123,8.018,2539.6,2539.2,0.8234]
[1751829039124,8.018,2539.6,2539.3,0.03938093]
[1751829039285,8.022,2539.5,2539.3,3.93808397]
[1751829040015,8.022,2539.5,2539.2,4.76157578]
[1751829040420,8.022,2539.5,2539.3,3.93807487]
[1751829040721,8.021,2539.5,2539.2,4.76153729]
[1751829042421,8.021,2539.5,2539.2,5.63154188]
[1751829042919,8.021,2539.5,2539.3,3.93808123]
[1751829043822,8.021,2539.5,2539.2,5.63158309]
[1751829044430,16.71719615,2539.5,2539.2,1.69340459]
[1751829044627,16.71719615,2539.5,2539.2,0.8234]
[1751829045195,8.021,2539.5,2539.2,0.8234]
[1751829045400,8.021,2539.5,2539.2,4.76160111]
[1751829047026,8.021,2539.5,2539.2,0.8234]
[1751829047945,10.001,2539.6,2539.2,0.8234]
[1751829048107,8.014,2539.5,2539.2,5.6356012]
[1751829050537,0.001,2539.6,2539.5,3.93778302]
[1751829050738,8.01,2539.6,2539.5,3.97716085]
[1751829050906,8.01,2539.6,2539.5,3.93778302]
[1751829051537,0.001,2539.6,2539.5,3.93778302]
[1751829051735,8.013,2539.6,2539.5,4.72930318]
[1751829052711,8.013,2539.6,2539.5,0.79152016]
[1751829055125,8.013,2539.6,2539.3,3.93801025]
[1751829056449,8.013,2539.6,2539.4,3.93792075]
[1751829057344,8.013,2539.6,2539.3,3.9380137]
[1751829057722,0.001,2539.6,2539.3,3.9380137]
[1751829057923,8.006,2539.6,2539.3,3.9380137]
[1751829059474,8.006,2539.6,2539.4,0.78922584]
[1751829060270,8.006,2539.6,2539.4,4.72711361]
[1751829060470,8.006,2539.6,2539.4,0.78922584]
[1751829061281,8.006,2539.6,2539.3,3.93802424]
[1751829063472,16.70219615,2539.6,2539.2,0.8234]
[1751829063671,20.63996135,2539.6,2539.2,4.76163975]
[1751829063878,16.70219615,2539.6,2539.2,4.76163975]
[1751829064056,16.70219615,2539.6,2539.3,3.93806834]
[1751829064257,16.70219615,2539.6,2539.2,4.76156215]
[1751829065873,20.63983137,2539.6,2539.1,3.93832889]
[1751829066079,20.63990896,2539.6,2539.1,3.93832889]
[1751829067443,3.93779458,2539.5,2539.0,4.71849138]
[1751829067648,16.70219615,2539.6,2539.0,4.71849138]
[1751829067649,8.002,2539.4,2539.1,3.93838187]
[1751829068181,8.002,2539.4,2539.0,4.718477]
[1751829068882,8.002,2539.4,2539.1,3.93840116]
[1751829069083,8.002,2539.4,2539.1,3.97778519]
[1751829069466,8.002,2539.4,2539.1,3.92778519]
[1751829070469,8.002,2539.4,2539.2,3.93813805]
[1751829071262,8.002,2539.4,2539.3,3.93809317]
[1751829071463,8.002,2539.4,2539.2,3.93816081]
[1751829071789,8.002,2539.4,2539.2,3.93824826]
[1751829072791,8.002,2539.4,2539.3,3.93809317]
[1751829075474,8.69719615,2539.6,2539.3,3.93809317]
[1751829075797,8.002,2539.5,2539.3,3.93809317]
[1751829076305,8.002,2539.4,2539.3,3.93809317]
[1751829080202,0.001,2539.6,2539.4,3.93793511]
[1751829080510,8.002,2539.5,2539.4,3.93793511]
[1751829081605,8.002,2539.5,2539.3,3.93803166]
[1751829084831,0.001,2539.6,2539.1,3.93840337]
[1751829085055,0.001,2539.6,2539.5,3.93778302]
[1751829088824,8.002,2539.6,2539.5,3.93778302]
[1751829094443,0.001,2539.6,2539.5,3.93778302]
[1751829104970,0.001,2539.6,2539.5,4.77696085]
[1751829106954,0.001,2539.6,2539.5,4.73758302]
[1751829107162,0.001,2539.6,2539.5,5.60513233]
[1751829107685,0.001,2539.6,2539.5,5.64451016]
[1751829110278,0.001,2539.6,2539.5,5.60513233]
[1751829111182,0.001,2539.6,2539.5,4.80533233]
[1751829111356,0.001,2539.6,2539.5,4.84471016]
[1751829116861,0.001,2539.6,2539.5,4.80533233]
[1751829120091,0.001,2539.6,2539.5,4.84471016]
[1751829126169,0.001,2539.6,2539.5,5.65791016]
[1751829127965,0.001,2539.6,2539.5,5.61853233]
[1751829129776,0.001,2539.6,2539.5,5.65791016]
[1751829130886,6.8787491,2540.3,2540.1,3.93673114]
[1751829131090,10.0,2540.3,2540.1,3.93673114]
[1751829131393,5.50983414,2540.6,2540.2,5.35306256]
[1751829131602,0.34233354,2540.5,2540.3,7.31905314]
[1751829131791,5.50983414,2540.6,2540.4,1.41648525]
[1751829131988,3.55583414,2540.6,2540.5,1.41648525]
[1751829132300,5.85217255,2540.6,2540.5,1.41648525]
[1751829133968,6.65387255,2540.6,2540.5,1.41648525]
[1751829135479,1.14403841,2540.6,2540.5,1.41648525]
[1751829135685,1.14403841,2540.6,2540.5,6.1384775]
[1751829135998,0.8017,2540.6,2540.5,5.35271827]
[1751829136365,0.8017,2540.6,2540.5,10.07537142]
[1751829139073,0.8027,2540.6,2540.5,10.07537142]
[1751829140294,0.001,2540.6,2540.5,10.07537142]
[1751829140496,0.001,2540.6,2540.5,10.0708005]
[1751829141028,0.001,2540.6,2540.5,11.47151847]
[1751829141302,0.0430518,2540.9,2540.8,3.93576826]
[1751829141476,0.0430518,2540.9,2540.8,5.35225351]
[1751829149598,0.0430518,2540.9,2540.8,8.88381328]
[1751829149906,0.0430518,2540.9,2540.8,8.88379572]
[1751829151219,0.0430518,2540.9,2540.8,8.87982051]
[1751829152122,1.953,2541.1,2540.8,5.3482783]
[1751829152292,1.953,2541.1,2540.7,8.65228915]
[1751829152293,1.953,2541.1,2541.0,3.53129137]
[1751829152491,1.903,2541.1,2541.0,4.94380141]
[1751829154041,10.59919615,2541.1,2540.5,4.71639288]
[1751829154198,3.93669789,2540.2,2540.1,4.71639288]
[1751829154403,22.57403275,2540.2,2539.6,5.90256789]
[1751829154598,22.57403275,2540.2,2539.4,13.80190748]
[1751829154599,8.69619615,2539.8,2539.4,4.71639288]
[1751829154843,12.6335145,2539.8,2539.4,4.71639288]
[1751829155006,12.6335145,2539.8,2539.3,8.69748669]
[1751829155214,0.8289,2539.7,2539.4,3.93792346]
[1751829156736,0.8289,2539.7,2539.5,3.9377681]
[1751829157420,0.8137,2539.9,2539.5,3.9377681]
[1751829160229,0.8137,2539.9,2539.5,4.72964337]
[1751829162536,0.8137,2539.9,2539.5,4.72960745]
[1751829162734,7.771,2540.6,2539.7,3.93734836]
[1751829162735,10.7408,2540.1,2539.7,3.93734836]
[1751829164031,10.7408,2540.1,2539.8,3.93729808]
[1751829164956,10.7408,2540.1,2539.6,3.93756618]
[1751829165161,14.67767066,2540.1,2539.6,3.97694245]
[1751829166249,14.67767066,2540.1,2539.7,1.4105365]
[1751829166462,14.67767066,2540.1,2539.8,1.4105365]
[1751829166750,14.67767066,2540.1,2539.9,1.4105365]
[1751829166936,14.67767066,2540.1,2540.0,1.4105365]
[1751829167525,4.73467066,2540.1,2540.0,1.4105365]
[1751829183368,5.10182036,2540.1,2540.0,1.4105365]
[1751829183960,5.10182036,2540.1,2540.0,1.4125365]
[1751829194781,5.10390039,2540.1,2540.0,1.4125365]
[1751829195469,5.10390048,2540.1,2540.0,1.4125365]
[1751829200089,7.05490048,2540.1,2540.0,1.4125365]
[1751829204094,7.05516875,2540.1,2540.0,1.4125365]
[1751829207093,7.0551784,2540.1,2540.0,1.4125365]
[1751829207984,17.0551784,2540.1,2540.0,1.4125365]
[1751829208367,17.0551784,2540.1,2540.0,0.002]
[1751829209960,25.0411784,2540.1,2540.0,0.002]
[1751829211281,14.3063784,2540.1,2540.0,0.002]
[1751829211491,24.2433784,2540.1,2540.0,0.002]
[1751829211992,24.2433784,2540.1,2540.0,1.4195873]
[1751829212176,24.2433784,2540.1,2540.0,0.002]
[1751829212377,24.2433784,2540.1,2540.0,1.41949114]
[1751829213092,24.2428928,2540.1,2540.0,1.41949114]
[1751829216697,4.3058928,2540.1,2540.0,1.41949114]
[1751829216878,14.2408928,2540.1,2540.0,1.41949114]
[1751829219380,14.24087686,2540.1,2540.0,1.41949114]
[1751829222072,14.23985907,2540.1,2540.0,1.41949114]
[1751829222474,14.23885907,2540.1,2540.0,1.41949114]
[1751829228312,14.23901625,2540.1,2540.0,1.41949114]
[1751829230916,21.19332916,2540.1,2540.0,1.41949114]
[1751829234406,20.82416578,2540.1,2540.0,1.41949114]
[1751829234610,21.55779443,2540.1,2540.0,1.41949114]
[1751829238918,21.55779443,2540.1,2540.0,0.002]
[1751829244020,19.60579443,2540.1,2540.0,0.002]
[1751829245113,12.65148152,2540.1,2540.0,0.002]
[1751829245418,11.62479443,2540.1,2540.0,0.002]
[1751829245618,19.60579443,2540.1,2540.0,0.002]
[1751829246318,11.62479443,2540.1,2540.0,0.002]
[1751829246507,19.60479443,2540.1,2540.0,0.002]
[1751829246710,15.66794156,2540.1,2540.0,0.002]
[1751829247220,7.68794156,2540.1,2540.0,0.002]
[1751829247426,15.66794156,2540.1,2540.0,0.002]
[1751829248629,15.66824638,2540.1,2540.0,0.002]
[1751829249200,7.68824638,2540.1,2540.0,0.002]
[1751829249410,0.73393347,2540.1,2540.0,0.002]
[1751829251490,0.73393347,2540.1,2540.0,4.58804963]
[1751829251694,0.36681609,2540.1,2540.0,6.35991266]
[1751829252021,0.36681609,2540.1,2540.0,3.01265846]
[1751829252210,7.321129,2540.1,2540.0,0.002]
[1751829253223,7.321129,2540.1,2540.0,1.77361921]
[1751829253929,7.321129,2540.1,2540.0,0.002]
[1751829254295,7.321129,2540.1,2540.0,1.77324304]
[1751829257600,0.36681609,2540.1,2540.0,5.71025091]
[1751829257796,0.36681609,2540.1,2540.0,6.59537767]
[1751829257997,0.36681609,2540.1,2540.0,4.82413463]
[1751829258198,0.36681609,2540.1,2540.0,6.59478773]
[1751829258612,0.36681609,2540.1,2540.0,6.6341578]
[1751829259129,0.36681609,2540.1,2540.0,5.61113463]
[1751829259334,0.36681609,2540.1,2540.0,7.97275133]
[1751829260436,0.36681609,2540.1,2540.0,5.61113463]
[1751829262320,0.36681609,2540.1,2540.0,7.96943784]
[1751829264129,0.36681609,2540.1,2540.0,5.61113463]
[1751829264628,0.36681609,2540.1,2540.0,7.96841286]
[1751829265731,0.36681609,2540.1,2540.0,9.13460606]
[1751829268313,0.36681609,2540.1,2540.0,19.13460606]
[1751829270428,0.36681609,2540.1,2540.0,19.68460606]
[1751829270636,0.36681609,2540.1,2540.0,16.16113463]
[1751829271328,0.36681609,2540.1,2540.0,15.61113463]
[1751829271544,0.36681609,2540.1,2540.0,13.58613463]
[1751829271829,0.36681609,2540.1,2540.0,15.94021945]
[1751829273104,0.36681609,2540.1,2540.0,13.58613463]
[1751829273504,0.36681609,2540.1,2540.0,15.94021945]
[1751829275206,0.36681609,2540.1,2540.0,13.58613463]
[1751829275404,0.36681609,2540.1,2540.0,15.9407696]
[1751829275604,0.36681609,2540.1,2540.0,13.58613463]
[1751829275805,0.36681609,2540.1,2540.0,15.94052767]
[1751829276215,0.36681609,2540.1,2540.0,13.58613463]
[1751829281111,0.36681609,2540.1,2540.0,17.11676208]
[1751829288142,0.36681609,2540.1,2540.0,13.58613463]
[1751829288343,0.36681609,2540.1,2540.0,17.12701455]
[1751829288652,0.36681609,2540.1,2540.0,17.12698835]
[1751829288855,0.36681609,2540.1,2540.0,13.58613463]
[1751829289068,0.36681609,2540.1,2540.0,17.12703089]
[1751829289228,0.36681609,2540.1,2540.0,13.58613463]
[1751829301278,1.18751609,2540.1,2540.0,0.002]
[1751829301778,5.47764219,2540.1,2540.0,0.002]
[1751829302752,15.47764219,2540.1,2540.0,0.002]
[1751829305197,15.48447521,2540.1,2540.0,0.002]
[1751829305697,15.48432651,2540.1,2540.0,0.002]
[1751829306500,23.45532651,2540.1,2540.0,0.002]
[1751829307367,23.09536896,2540.1,2540.0,0.002]
[1751829313007,23.45840518,2540.1,2540.0,0.002]
[1751829313571,23.09536896,2540.1,2540.0,0.002]
[1751829322590,23.46340442,2540.1,2540.0,0.002]
[1751829325084,23.09536896,2540.1,2540.0,0.002]
[1751829325303,23.46363598,2540.1,2540.0,0.002]
[1751829325523,23.09536896,2540.1,2540.0,0.002]
[1751829325821,23.46363598,2540.1,2540.0,0.002]
[1751829326322,11.55578311,2540.1,2540.0,0.002]
[1751829326486,23.46263598,2540.1,2540.0,0.002]
[1751829332123,15.49263598,2540.1,2540.0,0.002]
[1751829332527,24.58393598,2540.1,2540.0,0.002]
[1751829333499,24.21566896,2540.1,2540.0,0.002]
[1751829333797,24.58495873,2540.1,2540.0,0.002]
[1751829334029,24.21566896,2540.1,2540.0,0.002]
[1751829334329,24.58495275,2540.1,2540.0,0.002]
[1751829336009,34.02334276,2540.1,2540.0,0.002]
[1751829336813,34.02330705,2540.1,2540.0,0.002]
[1751829342840,34.02263535,2540.1,2540.0,0.002]
[1751829345113,29.28578248,2540.1,2540.0,0.002]
[1751829345344,33.22263535,2540.1,2540.0,0.002]
[1751829345846,29.28578248,2540.1,2540.0,0.002]
[1751829346049,33.22263535,2540.1,2540.0,0.002]
[1751829348752,23.31063535,2540.1,2540.0,0.002]
[1751829348933,33.21863535,2540.1,2540.0,0.002]
[1751829351673,32.85054464,2540.1,2540.0,0.002]
[1751829352361,28.91369177,2540.1,2540.0,0.002]
[1751829355883,32.85054464,2540.1,2540.0,0.002]
[1751829357371,33.21845538,2540.1,2540.0,0.002]
[1751829357756,32.85054464,2540.1,2540.0,0.002]
[1751829357958,33.21846001,2540.1,2540.0,0.002]
[1751829358376,33.21946001,2540.1,2540.0,0.002]
[1751829358744,33.21945895,2540.1,2540.0,0.002]
[1751829360868,33.21935708,2540.1,2540.0,0.002]
[1751829366251,33.21935691,2540.1,2540.0,0.002]
[1751829378286,32.85154464,2540.1,2540.0,0.002]
[1751829378481,33.2198813,2540.1,2540.0,0.002]
[1751829378981,31.48589391,2540.1,2540.0,0.002]
[1751829379183,31.48589389,2540.1,2540.0,0.002]
[1751829379384,31.48189389,2540.1,2540.0,0.002]
[1751829393708,31.11355714,2540.1,2540.0,0.002]
[1751829394009,31.48125022,2540.1,2540.0,0.002]
[1751829394509,31.48124594,2540.1,2540.0,0.002]
[1751829400114,31.48150785,2540.1,2540.0,0.002]
[1751829409357,31.11355714,2540.1,2540.0,0.002]
[1751829409642,31.48157621,2540.1,2540.0,0.002]
[1751829409943,31.48146085,2540.1,2540.0,0.002]
[1751829414219,31.48238274,2540.1,2540.0,0.002]
[1751829416641,24.52749456,2540.1,2540.0,0.002]
[1751829416846,31.48238274,2540.1,2540.0,0.002]
[1751829417344,2.62764169,2540.1,2540.0,0.002]
[1751829417543,2.62764169,2540.1,2540.0,0.8111]
[1751829417726,2.62764169,2540.1,2540.0,1.28591819]
[1751829420044,2.25881609,2540.1,2540.0,1.28591819]
[1751829420442,28.06144532,2540.1,2540.0,0.002]
[1751829420746,21.47299073,2540.1,2540.0,0.002]
[1751829423653,21.10655714,2540.1,2540.0,0.002]
[1751829423948,21.47262565,2540.1,2540.0,0.002]
[1751829424253,21.47263764,2540.1,2540.0,0.002]
[1751829424823,11.57563764,2540.1,2540.0,0.002]
[1751829425023,21.46763764,2540.1,2540.0,0.002]
[1751829428655,17.53078477,2540.1,2540.0,0.002]
[1751829430941,10.57589659,2540.1,2540.0,0.002]
[1751829431860,0.68389659,2540.1,2540.0,4.71280787]
[1751829432062,0.68389659,2540.1,2540.0,5.79846129]
[1751829432358,0.31781609,2540.1,2540.0,5.79846129]
[1751829432557,0.31781609,2540.1,2540.0,7.56964616]
[1751829433264,0.31781609,2540.1,2540.0,5.79846129]
[1751829433455,0.31781609,2540.1,2540.0,7.5687419]
[1751829434573,0.31781609,2540.1,2540.0,3.59236396]
[1751829434875,9.00984628,2540.1,2540.0,0.002]
[1751829435082,0.31781609,2540.1,2540.0,0.002]
[1751829435982,12.94669915,2540.1,2540.0,0.002]
[1751829436578,23.70919915,2540.1,2540.0,0.002]
[1751829436875,24.0712215,2540.1,2540.0,0.002]
[1751829439080,23.70919915,2540.1,2540.0,0.002]
[1751829439381,24.07117585,2540.1,2540.0,0.002]
[1751829439575,24.07111326,2540.1,2540.0,0.002]
[1751829439956,24.07111508,2540.1,2540.0,0.002]
[1751829442160,23.70919915,2540.1,2540.0,0.002]
[1751829442364,26.1098996,2540.1,2540.0,0.002]
[1751829442683,3.93778302,2539.5,2539.4,0.002]
[1751829442867,12.62981321,2539.5,2539.4,0.002]
[1751829443956,20.58281321,2539.5,2539.4,0.002]
[1751829446393,20.95059521,2539.5,2539.4,0.002]
[1751829446884,12.25856502,2539.5,2539.4,0.002]
[1751829447085,20.95059521,2539.5,2539.4,0.002]
[1751829447253,20.58281321,2539.5,2539.4,0.002]
[1751829452885,1.935,2539.7,2539.4,0.7597]
[1751829453081,9.888,2539.7,2539.4,0.7597]
[1751829453280,1.935,2539.7,2539.4,0.7597]
[1751829457896,5.87253112,2539.7,2539.4,0.7597]
[1751829458105,14.56456131,2539.7,2539.4,0.7597]
[1751829459203,3.93764499,2539.6,2539.4,0.7597]
[1751829459420,10.62703019,2539.7,2539.4,0.7597]
[1751829459630,14.56452706,2539.7,2539.4,0.7597]
[1751829460917,3.93763067,2539.6,2539.4,0.7597]
[1751829461607,14.56457747,2539.7,2539.4,0.7597]
[1751829462020,3.93763411,2539.6,2539.4,0.7597]
[1751829466955,8.69203019,2539.5,2539.4,0.002]
[1751829467250,12.62981321,2539.5,2539.4,0.002]
[1751829467402,8.69203019,2539.5,2539.4,0.002]
[1751829467603,12.62981321,2539.5,2539.4,0.002]
[1751829467802,8.69203019,2539.5,2539.4,0.002]
[1751829468003,12.62981321,2539.5,2539.4,0.002]
[1751829468305,12.99821888,2539.5,2539.4,0.002]
[1751829481254,12.99856225,2539.5,2539.4,0.002]
[1751829481454,12.9985999,2539.5,2539.4,0.002]
[1751829481823,12.99861312,2539.5,2539.4,0.002]
[1751829483874,22.99861312,2539.5,2539.4,0.002]
[1751829484031,22.99863556,2539.5,2539.4,0.002]
[1751829486864,24.37633556,2539.5,2539.4,0.002]
[1751829489865,24.37633556,2539.5,2539.0,0.002]
[1751829489867,13.93840337,2539.1,2539.0,0.002]
[1751829490064,12.30282235,2539.1,2539.0,0.002]
[1751829490278,24.19122572,2539.1,2539.0,0.002]
[1751829490767,0.36882235,2539.1,2539.0,0.002]
[1751829490943,10.25382235,2539.3,2539.0,0.8278]
[1751829491147,9.885,2539.3,2539.0,0.8278]
[1751829491938,9.885,2539.3,2539.0,4.76627099]
[1751829492336,1.934,2539.3,2539.1,0.4766271]
[1751829493041,1.934,2539.3,2539.1,4.41503023]
[1751829493868,1.934,2539.3,2539.1,0.4766271]
[1751829494778,1.934,2539.3,2539.2,3.93824826]
[1751829494972,1.934,2539.3,2539.2,4.76404826]
[1751829495174,1.934,2539.3,2539.2,5.68609228]
[1751829496984,18.69203019,2539.8,2539.3,3.93798726]
[1751829497283,2.30167741,2539.7,2539.5,3.93777258]
[1751829497475,0.36867741,2539.6,2539.5,3.93777258]
[1751829497658,1.933,2539.7,2539.5,3.93777258]
[1751829498053,1.933,2539.7,2539.4,4.70935957]
[1751829498256,1.933,2539.7,2539.4,5.66630925]
[1751829500366,1.933,2539.7,2539.4,1.72844968]
[1751829500682,1.933,2539.7,2539.6,3.93762797]
[1751829503999,1.933,2539.7,2539.5,4.73450729]
[1751829505191,1.933,2539.7,2539.6,3.93762797]
[1751829505391,1.933,2539.7,2539.6,4.90055907]